fUSD/lending_fUSD_20260118
["ID","MTS","AMOUNT","RATE_DAILY","PERIOD"]
[402667491,1768774240725,-1000.0,0.00017944,2]
[402667492,1768774240735,-1000.0,0.00017954,2]
[402667493,1768774240748,-151.0,0.00017957,2]
[402667494,1768774240758,-275.55,0.00017957,2]
[402667495,1768774240768,-2947.0,0.00017961,2]
[402667496,1768774240779,-151.0,0.00017961,2]
[402667497,1768774240788,-1000.0,0.00017964,2]
[402667498,1768774240798,-150.0,0.00017972,2]
[402667499,1768774240807,-150.0,0.00017973,2]
[402667500,1768774240819,-500.0,0.00017973,2]
[402667501,1768774240829,-500.0,0.00017973,2]
[402667502,1768774240839,-500.0,0.00017973,2]
[402667503,1768774240857,-549.0,0.00017973,2]
[402667504,1768774240870,-150.0,0.00017973,2]
[402667505,1768774240880,-150.0,0.00017973,2]
[402667506,1768774240890,-1000.0,0.00017979,2]
[402667507,1768774240900,-2947.0,0.00017984,2]
[402667508,1768774240911,-8793.7153597,0.0001799,2]
[402667509,1768774240921,-283.40438168,0.0001799,2]
[402667510,1768774240932,-283.40438168,0.0001799,2]
[402667511,1768774240941,-283.40438168,0.0001799,2]
[402667512,1768774240951,-165.07,0.0001799,2]
[402667513,1768774240961,-3427.0,0.00017993,2]
[402667514,1768774240970,-4462.7970521,0.00017993,2]
[402667515,1768774240980,-40597.7401416,0.00017993,2]
[402667516,1768774240990,-1974.5968571,0.00017993,2]
[402667517,1768774240999,-2661.2604058,0.00017993,2]
[402667518,1768774241009,-163.41225826,0.00017999,2]
[402667519,1768774241020,-155.0,0.00017999,2]
[402667520,1768774241030,-503.02366954,0.00017999,2]
[402667521,1768774241041,-500.0,0.00017999,2]
[402667522,1768774241052,-500.0,0.00017999,2]
[402667523,1768774241062,-500.0,0.00017999,2]
[402667524,1768774241072,-500.0,0.00017999,2]
[402667525,1768774241083,-500.0,0.00017999,2]
[402667526,1768774241093,-500.0,0.00017999,2]
[402667527,1768774241104,-500.0,0.00017999,2]
[402667528,1768774241115,-593.31046176,0.00017999,2]
[402667529,1768774241125,-607.11117085,0.00017999,2]
[402667530,1768774241135,-256.02590906,0.00017999,2]
[402667531,1768774241144,-179.21813634,0.00017999,2]
[402667532,1768774241154,-150.0,0.00018,2]
[402667533,1768774241163,-211.81856156,0.00018,2]
[402667534,1768774241172,-2543935.13208305,0.00018,2]
[402667535,1768774241198,-1723.07381486,0.00018,2]
[402667537,1768774242912,-673.3,0.00017488,2]
[402667540,1768774245486,-756.00000001,0.00017488,2]
[402667541,1768774245498,-93.2736785,0.00017488,2]
[402667542,1768774245508,-3273.2833215,0.00018,2]
[402667543,1768774245598,-10379.0,0.00018,2]
[402667546,1768774803735,591.63,0.00013757,2]
[402667547,1768774921454,-247.85664288,0.00015491,2]
[402667548,1768774981511,-227.57534312,0.00015491,2]
[402667549,1768774981534,-68.31112293,0.00015505,2]
[402667551,1768775220845,-251.18887707,0.00015505,2]
[402667552,1768775220868,-20.46193651,0.00015567,2]
[402667553,1768775250796,-229.53806349,0.00015567,2]
[402667554,1768775250819,-9.34553193,0.00015629,2]
[402667555,1768775252994,-248.61363329,0.00015629,2]
[402667556,1768775254959,-164.13636671,0.00015629,2]
[402667557,1768775257033,-389.65544814,0.00015629,2]
[402667558,1768775259114,-151.63403555,0.00015629,2]
[402667559,1768775261419,-249.7671891,0.00015629,2]
[402667562,1768775369962,166.66,0.0001535,2]
[402667563,1768775400839,-351.3540832,0.00015629,2]
[402667564,1768775407400,-280.0,0.00015629,2]
[402667565,1768775407422,-83.82586886,0.00015629,2]
[402667566,1768775410260,-177.9353373,0.00015629,2]
[402667567,1768775413757,-204.00360989,0.00015629,2]
[402667568,1768775417658,-211.82442796,0.00015629,2]
[402667575,1768775431629,-789.34446807,0.00015629,2]
[402667576,1768775431639,-166.66,0.00015673,2]
[402667577,1768775431649,-664.78,0.0001574,2]
[402667578,1768775431658,-300.0,0.00015806,2]
[402667579,1768775431667,-1200.0,0.00015806,2]
[402667580,1768775431677,-300.0,0.00015806,2]
[402667581,1768775431688,-300.0,0.00015806,2]
[402667582,1768775431698,-905.00512483,0.00015807,2]
[402667583,1768775431709,-2535.48197541,0.00015807,2]
[402667584,1768775431727,-2761.6869585,0.00015807,2]
[402667585,1768775431737,-1722.1064,0.00015848,2]
[402667586,1768775431747,-384.5758,0.00015948,2]
[402667587,1768775431757,-13196.66924766,0.00015948,2]
[402667588,1768775431769,-7517.48012438,0.00015948,2]
[402667589,1768775431780,-2700.0,0.00015948,2]
[402667590,1768775431798,-34.85942796,0.00015948,2]
[402667591,1768775431808,-236.8447,0.00015948,2]
[402667593,1768775431817,-73.81367891,0.00015996,2]
[402667595,1768775431828,-92.84632109,0.00015996,2]
[402667597,1768775431837,-746.074,0.00016045,2]
[402667599,1768775431846,-1200.0,0.00016046,2]
[402667601,1768775431855,-500.0,0.00016047,2]
[402667603,1768775431864,-500.0,0.00016047,2]
[402667605,1768775431874,-500.0,0.00016047,2]
[402667607,1768775431883,-500.0,0.00016047,2]
[402667609,1768775431893,-500.0,0.00016047,2]
[402667611,1768775431902,-500.0,0.00016047,2]
[402667613,1768775431911,-125.17614159,0.00016047,2]
[402667615,1768775431922,-197.62385841,0.00016047,2]
[402667617,1768775431932,-500.0,0.00016047,2]
[402667619,1768775431945,-500.0,0.00016047,2]
[402667621,1768775431954,-304.51473572,0.00016072,2]
[402667623,1768775431964,-150.0,0.000162,2]
[402667625,1768775431973,-150.0,0.000162,2]
[402667627,1768775431983,-150.0,0.000162,2]
[402667629,1768775431992,-150.0,0.000162,2]
[402667632,1768775432002,-166.67343268,0.000162,2]
[402667635,1768775432014,-69.78062033,0.000162,2]
[402667636,1768775432023,-150.0,0.000162,2]
[402667637,1768775432032,-5000.00173544,0.000162,5]
[402667638,1768775432043,-304.5147357,0.00016275,2]
[402667639,1768775432053,-166.66,0.00016319,2]
[402667640,1768775432063,-322.8,0.00016321,2]
[402667641,1768775432072,-500.0,0.00016356,2]
[402667642,1768775432083,-500.0,0.00016356,2]
[402667643,1768775432092,-500.0,0.00016356,2]
[402667644,1768775432101,-500.0,0.00016438,2]
[402667645,1768775432110,-503.02366954,0.00016438,2]
[402667646,1768775432119,-304.5147357,0.00016478,2]
[402667647,1768775432129,-332.18269408,0.00016499,2]
[402667648,1768775432139,-449.4501,0.00016499,2]
[402667649,1768775432148,-466.07,0.00016502,2]
[402667650,1768775432157,-664.78,0.00016527,2]
[402667651,1768775432167,-1264.0,0.00016535,2]
[402667652,1768775432177,-151.0,0.00016535,2]
[402667653,1768775432186,-151.0,0.00016535,2]
[402667654,1768775432196,-1264.0,0.00016535,2]
[402667655,1768775432207,-842.0,0.00016535,2]
[402667656,1768775432221,-1264.0,0.00016535,2]
[402667657,1768775432230,-842.0,0.00016535,2]
[402667658,1768775432240,-151.0,0.00016535,2]
[402667659,1768775432251,-399.30887887,0.00016535,2]
[402667660,1768775432260,-151.0,0.00016535,2]
[402667661,1768775432270,-640.9070393,0.00016535,2]
[402667662,1768775432280,-151.0,0.00016535,2]
[402667663,1768775432290,-842.0,0.00016535,2]
[402667664,1768775432299,-151.0,0.00016535,2]
[402667665,1768775432309,-151.0,0.00016535,2]
[402667666,1768775432318,-1264.0,0.00016535,2]
[402667667,1768775432327,-151.0,0.00016535,2]
[402667668,1768775432336,-1264.0,0.00016535,2]
[402667669,1768775432345,-1264.0,0.00016535,2]
[402667670,1768775432356,-189.0,0.00016575,2]
[402667671,1768775432366,-322.81,0.00016595,2]
[402667672,1768775432376,-166.66,0.00016642,2]
[402667673,1768775432387,-500.0,0.00016649,2]
[402667674,1768775432396,-5496.88860335,0.00016671,2]
[402667675,1768775432408,-233.80326829,0.00016671,2]
[402667676,1768775432417,-304.5147357,0.00016681,2]
[402667677,1768775432426,-12.13816275,0.00016729,2]
[402667678,1768775432443,-211.79183725,0.00016729,2]
[402667679,1768775432454,-304.5147357,0.00016884,2]
[402667680,1768775432464,-40.60262705,0.00016922,2]
[402667681,1768775432475,-532.82685681,0.00016922,2]
[402667682,1768775432487,-3528.14577167,0.00016922,2]
[402667683,1768775432498,-2238.41975202,0.00016922,2]
[402667688,1768775437774,-22381.02499245,0.00016922,2]
[402667689,1768775437783,-999.99,0.00016922,2]
[402667690,1768775438063,-166.66,0.00016965,2]
[402667691,1768775438073,-41885.0,0.00017049,2]
[402667692,1768775438083,-424.21815582,0.00017056,2]
[402667693,1768775438092,-300.0,0.00017056,2]
[402667694,1768775438102,-304.5147357,0.00017088,2]
[402667695,1768775438112,-334.48014536,0.00017099,2]
[402667696,1768775438123,-574.12855637,0.00017099,2]
[402667697,1768775438133,-620.0,0.00017099,2]
[402667698,1768775438143,-1999.0,0.00017099,2]
[402667699,1768775438153,-246.74931554,0.00017124,2]
[402667700,1768775438163,-300.0,0.00017124,2]
[402667701,1768775438172,-6202.17405874,0.00017146,2]
[402667702,1768775438182,-200.0,0.00017174,2]
[402667703,1768775438192,-892.44582311,0.00017192,2]
[402667704,1768775438202,-420.0,0.00017285,2]
[402667705,1768775438215,-300.0,0.00017285,2]
[402667706,1768775438225,-304.5147357,0.00017291,2]
[402667707,1768775438235,-664.78,0.00017314,2]
[402667708,1768775438245,-1680.0,0.00017372,2]
[402667709,1768775438255,-319.5,0.00017443,2]
[402667710,1768775438264,-304.5147357,0.00017494,2]
[402667711,1768775438275,-1000.0,0.00017534,2]
[402667712,1768775438286,-284.0,0.00017543,2]
[402667713,1768775438295,-327.0,0.0001758,2]
[402667714,1768775438305,-804.0,0.00017639,2]
[402667715,1768775438315,-215.76395561,0.0001764,2]
[402667716,1768775438323,-327.0,0.00017641,2]
[402667717,1768775438332,-595.37131296,0.00017647,2]
[402667718,1768775438340,-2860.84425489,0.00017684,2]
[402667719,1768775438354,-304.5147357,0.00017697,2]
[402667720,1768775438363,-150.0,0.00017699,2]
[402667721,1768775438373,-500.0,0.00017699,2]
[402667722,1768775438383,-500.0,0.00017699,2]
[402667723,1768775438393,-150.0,0.00017699,2]
[402667724,1768775438405,-500.0,0.00017699,2]
[402667725,1768775438414,-150.0,0.00017699,2]
[402667726,1768775438423,-500.0,0.00017699,2]
[402667727,1768775438433,-1000.0,0.000177,2]
[402667728,1768775438442,-151.0,0.0001771,2]
[402667729,1768775438452,-1000.0,0.00017726,2]
[402667730,1768775438470,-24953.511,0.0001773,2]
[402667731,1768775438480,-1000.0,0.00017733,2]
[402667732,1768775438490,-150.0,0.00017739,2]
[402667733,1768775438499,-151.0,0.00017751,2]
[402667734,1768775438508,-638.48459727,0.00017754,2]
[402667735,1768775438518,-150.0,0.00017754,2]
[402667736,1768775438527,-579.63385986,0.00017754,2]
[402667737,1768775438537,-500.0,0.00017754,2]
[402667738,1768775438546,-150.0,0.00017754,2]
[402667739,1768775438555,-500.0,0.00017754,2]
[402667740,1768775438564,-150.0,0.00017754,2]
[402667741,1768775438574,-500.0,0.00017754,2]
[402667742,1768775438583,-161.867,0.00017763,2]
[402667743,1768775438592,-3473.0,0.00017763,2]
[402667744,1768775438602,-616.199,0.00017763,2]
[402667745,1768775438612,-200.0,0.00017771,2]
[402667746,1768775438621,-1000.0,0.00017772,2]
[402667747,1768775438629,-1000.0,0.0001778,2]
[402667748,1768775438638,-150.0,0.00017783,2]
[402667749,1768775438648,-151.0,0.00017793,2]
[402667750,1768775438657,-500.0,0.00017808,2]
[402667751,1768775438667,-150.0,0.00017808,2]
[402667752,1768775438676,-1000.0,0.00017808,2]
[402667753,1768775438686,-150.0,0.00017809,2]
[402667754,1768775438696,-500.0,0.00017809,2]
[402667755,1768775438706,-200.0,0.00017809,2]
[402667756,1768775438715,-500.0,0.00017809,2]
[402667757,1768775438725,-150.0,0.00017809,2]
[402667758,1768775438735,-500.0,0.00017809,2]
[402667759,1768775438745,-1000.0,0.00017812,2]
[402667760,1768775438755,-804.0,0.00017816,2]
[402667761,1768775438764,-150.0,0.00017816,2]
[402667762,1768775438774,-500.0,0.00017819,2]
[402667763,1768775438784,-674.89917,0.0001782,2]
[402667764,1768775438794,-674.89917,0.0001782,2]
[402667765,1768775438803,-1000.0,0.00017829,2]
[402667766,1768775438813,-5767.21416178,0.0001783,2]
[402667767,1768775438823,-150.0,0.00017831,2]
[402667768,1768775438833,-151.0,0.00017834,2]
[402667769,1768775438843,-1000.0,0.00017837,2]
[402667770,1768775438853,-1000.0,0.00017844,2]
[402667771,1768775438863,-1000.0,0.00017852,2]
[402667772,1768775438874,-1000.0,0.00017854,2]
[402667773,1768775438884,-200.0,0.00017856,2]
[402667774,1768775438894,-804.0,0.00017859,2]
[402667775,1768775438903,-500.0,0.00017863,2]
[402667776,1768775438913,-150.0,0.00017863,2]
[402667777,1768775438923,-2789.31,0.00017863,7]
[402667778,1768775438932,-2789.31,0.00017863,7]
[402667779,1768775438941,-2789.31,0.00017863,7]
[402667780,1768775438950,-2789.31,0.00017863,7]
[402667781,1768775438959,-150.0,0.00017863,2]
[402667782,1768775438969,-500.0,0.00017863,2]
[402667783,1768775438979,-150.0,0.00017863,2]
[402667784,1768775438989,-150.0,0.00017867,2]
[402667785,1768775438998,-1000.0,0.00017875,2]
[402667786,1768775439008,-151.0,0.00017876,2]
[402667787,1768775439018,-1000.0,0.0001788,2]
[402667788,1768775439028,-996.43588471,0.0001788,2]
[402667789,1768775439037,-1000.0,0.00017887,2]
[402667790,1768775439047,-5800.0,0.00017899,2]
[402667791,1768775439056,-10000.0,0.000179,2]
[402667792,1768775439066,-5139.71732139,0.000179,2]
[402667793,1768775439076,-2860.84425489,0.000179,2]
[402667794,1768775439086,-304.5147357,0.000179,2]
[402667795,1768775439096,-1759.04316869,0.000179,2]
[402667796,1768775439107,-5981.27033779,0.000179,2]
[402667797,1768775439116,-431.43119673,0.000179,2]
[402667798,1768775439126,-431.43119673,0.000179,2]
[402667799,1768775439136,-431.43119673,0.000179,2]
[402667800,1768775439147,-3430.0,0.000179,2]
[402667801,1768775439157,-1000.0,0.00017901,2]
[402667802,1768775439167,-1000.0,0.00017903,2]
[402667803,1768775439177,-1000.0,0.00017904,2]
[402667804,1768775439187,-327.0,0.00017907,2]
[402667805,1768775439197,-150.0,0.00017908,2]
[402667806,1768775439209,-327.0,0.00017917,2]
[402667807,1768775439220,-151.0,0.00017917,2]
[402667808,1768775439231,-500.0,0.00017918,2]
[402667809,1768775439242,-150.0,0.00017918,2]
[402667810,1768775439253,-187.6507494,0.00017918,2]
[402667811,1768775439263,-500.0,0.00017918,2]
[402667812,1768775439272,-150.0,0.00017918,2]
[402667813,1768775439282,-1000.0,0.00017929,2]
[402667814,1768775439291,-818.01078342,0.00017933,2]
[402667815,1768775439300,-1000.0,0.00017937,2]
[402667816,1768775439309,-171.38516895,0.00017953,2]
[402667817,1768775439319,-151.0,0.00017959,2]
[402667818,1768775439328,-1000.0,0.0001796,2]
[402667819,1768775439338,-1000.0,0.0001796,2]
[402667820,1768775439348,-1000.0,0.00017965,2]
[402667821,1768775439358,-1000.0,0.00017966,2]
[402667822,1768775439367,-1000.0,0.00017972,2]
[402667823,1768775439377,-150.0,0.00017972,2]
[402667824,1768775439386,-500.0,0.00017973,2]
[402667825,1768775439396,-150.0,0.00017973,2]
[402667826,1768775439405,-500.0,0.00017973,2]
[402667827,1768775439414,-500.0,0.00017973,2]
[402667828,1768775439423,-212.0,0.00017973,2]
[402667829,1768775439433,-150.0,0.00017973,2]
[402667830,1768775439442,-150.0,0.00017973,2]
[402667831,1768775439451,-1000.0,0.00017979,2]
[402667832,1768775439460,-1538.92610537,0.0001798,2]
[402667834,1768775439470,-1000.0,0.00017984,2]
[402667835,1768775439479,-1000.0,0.00017987,2]
[402667836,1768775439488,-1000.0,0.00017987,2]
[402667837,1768775439498,-1000.0,0.00017989,2]
[402667838,1768775439507,-283.40438168,0.0001799,2]
[402667839,1768775439515,-283.40438168,0.0001799,2]
[402667840,1768775439524,-283.40438168,0.0001799,2]
[402667841,1768775439533,-151.0,0.00017997,2]
[402667842,1768775439542,-500.0,0.00017998,2]
[402667843,1768775439551,-163.41225826,0.00017999,2]
[402667844,1768775439560,-2661.2604058,0.00017999,2]
[402667845,1768775439570,-155.0,0.00017999,2]
[402667846,1768775439579,-48357.197178,0.00017999,2]
[402667847,1768775439588,-2349.3032534,0.00017999,2]
[402667848,1768775439598,-1217.9742028,0.00017999,2]
[402667849,1768775439607,-607.11117085,0.00017999,2]
[402667850,1768775439617,-265.56637009,0.00018,2]
[402667851,1768775439626,-211.81856156,0.00018,2]
[402667852,1768775439635,-133896.21702868,0.00018,2]
[402667853,1768775439651,-1421.35613554,0.00018,2]
[402667855,1768775439749,-3829.77637547,0.00018,2]
[402667856,1768775439760,-5718.68275994,0.00018,2]
[402667857,1768775439901,-11214.8381698,0.00018,2]
[402667858,1768775439916,-16544.25654289,0.00018,2]
[402667859,1768775439927,-3192.9,0.00018,2]
[402667860,1768775440106,-456.61,0.00017699,2]
[402667862,1768775440418,-1.7e-07,0.00017699,2]
[402667864,1768775440458,-100.38999983,0.00017699,2]
[402667865,1768775440468,-557.0,0.00017754,2]
[402667866,1768775440478,-557.0,0.00017809,2]
[402667867,1768775440487,-557.0,0.00017863,2]
[402667868,1768775440497,-431.43119673,0.000179,2]
[402667869,1768775440506,-557.0,0.00017918,2]
[402667870,1768775440516,-557.0,0.00017973,2]
[402667871,1768775440525,-213905.13831286,0.00018,2]
[402667872,1768775440550,-1308.96865098,0.00018,2]
[402667873,1768775440566,-200719.46523359,0.00018,2]
[402667874,1768775440575,-456929.23676299,0.00018,2]
[402667875,1768775440584,-16207.84434566,0.00018,2]
[402667876,1768775440593,-2042301.0652949,0.00018,2]
[402667877,1768775440603,-8378.49999994,0.00018,2]
[402667882,1768775442747,-500.0,0.00017982,2]
[402667883,1768775442759,-28185.49071644,0.00018,2]
[402667884,1768775442771,-5256.82456911,0.00018,2]
[402667885,1768775442783,-1228.49761,0.00018,2]
[402667886,1768775442793,-1494.78164145,0.00018,2]
[402667887,1768775442805,-253239.94876669,0.00018,2]
[402667888,1768775442816,-29018.95677155,0.00018,2]
[402667889,1768775442861,-2483.38477828,0.00018,2]
[402667890,1768775442949,-62.74814111,0.00018,2]
[402667891,1768775442959,-353.21607395,0.00018,2]
[402667892,1768775442977,-1216.82830792,0.00018,2]
[402667898,1768775445652,-1331.0,0.00017763,2]
[402667899,1768775445662,-78218.40398535,0.00018,2]
[402667900,1768775445674,-539.73354643,0.00018,2]
[402667901,1768775445685,-726.65367492,0.00018,2]
[402667902,1768775445696,-8507.24236572,0.00018,2]
[402667903,1768775445713,-663.02749647,0.00018,2]
[402667904,1768775445775,-59004.71511589,0.00018,2]
[402667905,1768775445786,-547.86314549,0.00018,2]
[402667906,1768775445838,-822.78396786,0.00018,2]
[402667907,1768775445849,-476.35224409,0.00018,2]
[402667908,1768775445900,-280.87,0.00018,2]
[402667909,1768775445912,-269.79030303,0.00018,2]
[402667910,1768775445978,-1313.25464429,0.00018,2]
[402667912,1768775580828,-462.30783182,0.00015778,2]
[402667913,1768775625767,-134.55216818,0.00015778,2]
[402667914,1768775625789,-68.07529455,0.00015856,2]
[402667915,1768775627875,-258.82603438,0.00015856,2]
[402667916,1768775775804,-341.0058,0.00015856,2]
[402667919,1768776346156,530.65962722,0.00015297,2]
[402667920,1768776359554,157.46,0.00015264,2]
[402667921,1768776459719,3240.0,0.0001513,2]
[402667922,1768776556115,-469.34037278,0.00015297,2]
[402667923,1768776556137,-157.46,0.00015391,2]
[402667924,1768776556157,-154.77625741,0.00015481,2]
[402667925,1768776556178,-279.0,0.00015489,2]
[402667926,1768776556200,-600.0,0.00015489,2]
[402667927,1768776556221,-2416.61177369,0.00015489,2]
[402667928,1768776556242,-159.52,0.00015489,2]
[402667929,1768776556262,-157.46,0.00015518,2]
[402667930,1768776556283,-392.47456625,0.00015535,2]
[402667931,1768776556303,-294.16775328,0.00015538,2]
[402667933,1768776631857,-29.33224672,0.00015538,2]
[402667934,1768776631869,-279.0,0.00015538,2]
[402667935,1768776631881,-157.46,0.00015645,2]
[402667936,1768776631892,-157.46,0.00015773,2]
[402667937,1768776631903,-23.36793402,0.000159,2]
[402667938,1768776631916,-134.09206598,0.000159,2]
[402667939,1768776631927,-180.33,0.00015918,2]
[402667940,1768776631938,-684.57793402,0.00015998,2]
[402667941,1768776631952,-515.42206598,0.00015998,2]
[402667942,1768776631963,-458.07793402,0.00015999,2]
[402667943,1768776631976,-679.83371945,0.00015999,2]
[402667944,1768776631999,-7304.69935868,0.00015999,2]
[402667945,1768776632012,-3813.50657851,0.00015999,2]
[402667946,1768776632025,-3244.47850934,0.00015999,2]
[402667947,1768776632036,-544.45495474,0.00016,2]
[402667948,1768776632048,-326.80947795,0.00016,2]
[402667949,1768776632060,-128.73556731,0.00016,2]
[402667950,1768776632071,-2500.0,0.00016,2]
[402667952,1768776632082,-236.8447,0.00016,2]
[402667973,1768776632547,-251.76964842,0.00016026,2]
[402667974,1768776632583,-157.46,0.00016027,2]
[402667975,1768776632608,-500.0,0.00016047,2]
[402667976,1768776632618,-500.0,0.00016047,2]
[402667977,1768776632627,-166.67,0.00016061,2]
[402667978,1768776632637,-167.01,0.0001609,3]
[402667979,1768776632648,-150.0,0.00016098,2]
[402667980,1768776632658,-923.71300875,0.00016099,2]
[402667981,1768776632667,-477.488,0.00016099,2]
[402667982,1768776632677,-604.54147957,0.00016099,2]
[402667983,1768776632686,-150.0,0.000162,2]
[402667984,1768776632695,-150.0,0.000162,2]
[402667985,1768776632705,-150.0,0.000162,2]
[402667986,1768776632714,-5527.0,0.000163,2]
[402667987,1768776632723,-500.0,0.00016356,2]
[402667988,1768776632733,-500.0,0.00016356,2]
[402667989,1768776632742,-500.0,0.00016356,2]
[402667990,1768776632755,-151.0,0.00016628,2]
[402667991,1768776632765,-151.0,0.00016628,2]
[402667992,1768776632774,-500.0,0.00016628,2]
[402667993,1768776632784,-5533.0,0.000167,3]
[402667994,1768776632793,-180.33,0.00016714,2]
[402667995,1768776632802,-151.0,0.00016728,2]
[402667996,1768776632811,-151.0,0.00016728,2]
[402667997,1768776632820,-842.0,0.00016728,2]
[402667998,1768776632829,-842.0,0.00016728,2]
[402667999,1768776632838,-151.0,0.00016728,2]
[402668000,1768776632847,-1264.0,0.00016728,2]
[402668001,1768776632856,-151.0,0.00016728,2]
[402668002,1768776632865,-842.0,0.00016728,2]
[402668003,1768776632874,-151.0,0.00016728,2]
[402668004,1768776632883,-842.0,0.00016728,2]
[402668005,1768776632892,-152.0,0.00016728,2]
[402668006,1768776632901,-152.0,0.00016728,2]
[402668007,1768776632911,-152.0,0.00016728,2]
[402668008,1768776632920,-151.0,0.00016728,2]
[402668009,1768776632930,-151.0,0.00016728,2]
[402668010,1768776632939,-151.0,0.00016728,2]
[402668011,1768776632948,-179.15,0.00016745,2]
[402668012,1768776632957,-216.86760379,0.0001683,2]
[402668013,1768776632966,-166.67,0.00016945,2]
[402668014,1768776632975,-250.0,0.00017,2]
[402668015,1768776632983,-195.0,0.00017038,2]
[402668016,1768776632992,-300.0,0.00017038,2]
[402668017,1768776633001,-600.0,0.00017038,2]
[402668018,1768776633011,-574.12855637,0.00017099,2]
[402668019,1768776633019,-1999.0,0.00017099,2]
[402668020,1768776633029,-683.93739858,0.00017099,2]
[402668021,1768776633038,-5533.0,0.000171,5]
[402668022,1768776633047,-1000.0,0.00017209,2]
[402668023,1768776633056,-224.55,0.00017237,2]
[402668024,1768776633066,-1000.0,0.0001726,2]
[402668025,1768776633075,-159.52,0.00017425,2]
[402668026,1768776633085,-2000.0,0.000175,2]
[402668027,1768776633094,-180.33,0.0001751,2]
[402668028,1768776633103,-1000.0,0.00017534,2]
[402668029,1768776633113,-1680.0,0.00017579,2]
[402668030,1768776633122,-2878.0,0.00017588,2]
[402668031,1768776633131,-2878.0,0.00017596,2]
[402668032,1768776633140,-215.76395562,0.0001764,2]
[402668033,1768776633149,-595.37131296,0.00017647,2]
[402668034,1768776633159,-202.62137386,0.00017699,2]
[402668035,1768776633168,-150.0,0.00017699,2]
[402668036,1768776633177,-150.0,0.00017699,2]
[402668037,1768776633186,-150.0,0.00017699,2]
[402668038,1768776633196,-500.0,0.00017699,2]
[402668039,1768776633205,-250.0,0.00017699,2]
[402668040,1768776633214,-460.0,0.00017699,2]
[402668041,1768776633224,-150.0,0.00017699,2]
[402668042,1768776633233,-150.0,0.00017699,2]
[402668043,1768776633242,-500.0,0.00017699,2]
[402668044,1768776633252,-150.0,0.00017699,2]
[402668045,1768776633262,-150.0,0.00017699,2]
[402668046,1768776633271,-500.0,0.00017699,2]
[402668047,1768776633281,-150.0,0.00017754,2]
[402668048,1768776633290,-150.0,0.00017754,2]
[402668049,1768776633299,-150.0,0.00017754,2]
[402668050,1768776633308,-568.07099453,0.00017754,2]
[402668051,1768776633318,-460.0,0.00017754,2]
[402668052,1768776633327,-150.0,0.00017754,2]
[402668053,1768776633336,-150.0,0.00017754,2]
[402668054,1768776633346,-500.0,0.00017754,2]
[402668055,1768776633355,-150.0,0.00017754,2]
[402668056,1768776633364,-150.0,0.00017754,2]
[402668057,1768776633374,-500.0,0.00017754,2]
[402668058,1768776633383,-622.6113,0.00017763,2]
[402668059,1768776633392,-1000.0,0.00017808,2]
[402668060,1768776633402,-200.0,0.00017809,2]
[402668061,1768776633411,-200.0,0.00017809,2]
[402668062,1768776633420,-200.0,0.00017809,2]
[402668063,1768776633430,-460.0,0.00017809,2]
[402668064,1768776633439,-150.0,0.00017809,2]
[402668065,1768776633449,-150.0,0.00017809,2]
[402668066,1768776633458,-500.0,0.00017809,2]
[402668067,1768776633468,-200.0,0.00017809,2]
[402668068,1768776633477,-150.0,0.00017809,2]
[402668069,1768776633487,-500.0,0.00017809,2]